bitfinex-derivatives/quotes_BTCF0:USTF0_20241227
["timestamp","ask_amount","ask_price","bid_price","bid_amount"]
[1735295591864,0.001,96333.0,96317.0,0.051971]
[1735295592069,0.051967,96325.0,96317.0,0.051971]
[1735295592565,0.051969,96321.0,96308.0,0.051976]
[1735295592765,0.051972,96317.0,96308.0,0.051976]
[1735295593169,0.051967,96325.0,96312.0,0.051974]
[1735295593366,0.051969,96321.0,96312.0,0.051974]
[1735295593565,0.051972,96317.0,96303.0,0.051979]
[1735295593873,0.051974,96311.0,96303.0,0.051979]
[1735295594559,0.001,96317.0,96303.0,0.051979]
[1735295594755,0.051975,96310.0,96300.0,0.139]
[1735295595162,0.051975,96310.0,96301.0,0.05198]
[1735295596270,0.001,96311.0,96301.0,0.05198]
[1735295596472,0.051976,96309.0,96301.0,0.05198]
[1735295596868,0.001,96310.0,96300.0,0.1]
[1735295597060,0.001,96310.0,96307.0,0.051976]
[1735295597261,0.051972,96317.0,96307.0,0.051976]
[1735295597457,0.001,96311.0,96307.0,0.051976]
[1735295597870,0.15317903,96326.0,96325.0,0.051967]
[1735295598270,0.03247903,96326.0,96325.0,0.051967]
[1735295598474,0.18406008,96335.0,96334.0,0.051962]
[1735295598773,0.18406008,96342.0,96341.0,0.051958]
[1735295600263,0.18406008,96342.0,96341.0,0.3]
[1735295600264,0.004,96342.0,96341.0,0.3]
[1735295600469,0.051942,96371.0,96364.0,0.051946]
[1735295600768,0.051945,96366.0,96356.0,0.05195]
[1735295600969,0.051945,96366.0,96340.0,0.0376]
[1735295601174,0.051945,96366.0,96359.0,0.051948]
[1735295603466,0.052945,96366.0,96359.0,0.056948]
[1735295604072,0.001,96366.0,96359.0,0.005]
[1735295604275,0.001,96366.0,96364.0,0.051945]
[1735295606265,0.001,96366.0,96365.0,0.051945]
[1735295606865,0.051934,96387.0,96374.0,0.05194]
[1735295607273,0.051934,96387.0,96364.0,0.004]
[1735295607469,0.051934,96387.0,96376.0,0.051939]
[1735295608072,0.051934,96387.0,96380.0,0.051937]
[1735295608870,0.051934,96387.0,96360.0,0.15529114]
[1735295609078,0.053934,96387.0,96377.0,0.051938]
[1735295609274,0.053934,96387.0,96380.0,0.051937]
[1735295609469,0.002,96387.0,96360.0,0.15529114]
[1735295609668,0.002,96387.0,96385.0,0.051934]
[1735295609669,0.001,96387.0,96385.0,0.051934]
[1735295609870,0.003,96387.0,96385.0,0.051934]
[1735295610086,0.18406008,96412.0,96410.0,0.051921]
[1735295611080,0.55586087,96434.0,96401.0,0.0746]
[1735295611081,0.051909,96432.0,96401.0,0.0746]
[1735295611279,0.15529114,96430.0,96401.0,0.0746]
[1735295611468,0.051918,96415.0,96404.0,0.051924]
[1735295611668,0.051919,96414.0,96404.0,0.051924]
[1735295612271,0.051919,96414.0,96390.0,0.00155603]
[1735295612474,0.0372,96419.0,96408.0,0.051922]
[1735295612673,0.0372,96419.0,96390.0,0.15684717]
[1735295612674,0.00888072,96437.0,96392.0,0.05193]
[1735295612877,0.00888072,96437.0,96431.0,0.05191]
[1735295613074,0.0372,96442.0,96401.0,0.0373]
[1735295613075,0.051905,96441.0,96401.0,0.0373]
[1735295613277,0.0372,96442.0,96410.0,0.15529114]
[1735295613492,0.051905,96440.0,96410.0,0.15529114]
[1735295613785,0.001,96432.0,96420.0,0.15529114]
[1735295614085,0.001,96432.0,96402.0,0.0381]
[1735295614086,0.001,96432.0,96429.0,0.05191]
[1735295614281,0.001,96441.0,96429.0,0.05191]
[1735295614783,0.051904,96442.0,96430.0,0.05191]
[1735295615083,0.051907,96437.0,96419.0,0.051916]
[1735295615283,0.15529114,96430.0,96419.0,0.051916]
[1735295615474,0.051912,96428.0,96410.0,0.006]
[1735295615781,0.051912,96428.0,96415.0,0.051918]
[1735295616879,0.051912,96428.0,96419.0,0.002]
[1735295617081,0.051913,96426.0,96419.0,0.002]
[1735295618483,0.051907,96436.0,96419.0,0.004]
[1735295618683,0.051907,96436.0,96423.0,0.051914]
[1735295619080,0.051909,96434.0,96423.0,0.051914]
[1735295620196,0.0391,96439.0,96423.0,0.001]
[1735295620382,0.051904,96443.0,96431.0,0.051909]
[1735295620686,0.037,96459.0,96423.0,0.001]
[1735295620687,0.051899,96452.0,96423.0,0.001]
[1735295620882,0.037,96459.0,96423.0,0.001]
[1735295621085,0.051899,96451.0,96435.0,0.051907]
[1735295621276,0.051899,96451.0,96440.0,0.051904]
[1735295622285,0.04581511,96459.0,96423.0,0.01171364]
[1735295622486,0.051897,96456.0,96443.0,0.051903]
[1735295622886,0.051897,96455.0,96443.0,0.051903]
[1735295623199,0.002,96451.0,96443.0,0.051903]
[1735295623390,0.006,96451.0,96443.0,0.051903]
[1735295623885,0.002,96451.0,96444.0,0.051902]
[1735295624279,0.002,96451.0,96443.0,0.001]
[1735295624483,0.007,96451.0,96449.0,0.0519]
[1735295625286,0.0404,96489.0,96465.0,0.051891]
[1735295625287,0.051883,96480.0,96465.0,0.051891]
[1735295625493,0.04943096,96489.0,96465.0,0.051891]
[1735295625792,0.051886,96476.0,96465.0,0.051891]
[1735295625989,0.051887,96474.0,96465.0,0.051891]
[1735295626893,0.051887,96474.0,96465.0,0.052891]
[1735295627086,0.05843096,96489.0,96450.0,0.15529114]
[1735295627280,0.04943096,96489.0,96465.0,0.001]
[1735295627482,0.058887,96474.0,96465.0,0.001]
[1735295627994,0.058887,96474.0,96472.0,0.051888]
[1735295627995,0.007,96474.0,96472.0,0.051888]
[1735295629090,0.007,96474.0,96465.0,0.001]
[1735295629298,0.051889,96470.0,96464.0,0.051892]
[1735295629680,0.051889,96470.0,96441.0,0.0792553]
[1735295629681,0.3,96470.0,96441.0,0.0015553]
[1735295629884,0.15529114,96460.0,96441.0,0.0015553]
[1735295630192,0.051903,96445.0,96441.0,0.0015553]
[1735295630489,0.051903,96443.0,96441.0,0.0015553]
[1735295630690,0.051903,96443.0,96436.0,0.051907]
[1735295630993,0.051905,96441.0,96436.0,0.051907]
[1735295632489,0.051905,96441.0,96436.0,0.054907]
[1735295632796,0.001,96441.0,96436.0,0.009]
[1735295632986,0.051906,96439.0,96436.0,0.009]
[1735295633186,0.051906,96439.0,96436.0,0.006]
[1735295633495,0.051906,96439.0,96436.0,0.009]
[1735295633690,0.051906,96439.0,96436.0,0.003]
[1735295633895,0.051906,96439.0,96436.0,0.009]
[1735295634095,0.001,96441.0,96436.0,0.060907]
[1735295634283,0.001,96441.0,96440.0,0.051905]
[1735295635192,0.001,96441.0,96436.0,0.009]
[1735295635193,0.051906,96438.0,96436.0,0.009]
[1735295635401,0.001,96439.0,96416.0,0.0015556]
[1735295635587,0.051911,96429.0,96416.0,0.0015556]
[1735295635787,0.051911,96429.0,96421.0,0.051915]
[1735295636592,0.001,96429.0,96416.0,0.0075556]
[1735295636784,0.001,96429.0,96427.0,0.051912]
[1735295636988,0.001,96429.0,96421.0,0.051915]
[1735295637183,0.001,96429.0,96416.0,0.0075556]
[1735295637392,0.051917,96417.0,96416.0,0.006]
[1735295637692,0.05192,96411.0,96410.0,0.014]
[1735295637898,0.051916,96420.0,96410.0,0.014]
[1735295638090,0.0419,96428.0,96421.0,0.004]
[1735295638899,0.3087843,96440.0,96424.0,0.051913]
[1735295638900,0.15249316,96425.0,96424.0,0.051913]
[1735295639687,0.001,96429.0,96421.0,0.002]
[1735295639894,0.001,96429.0,96425.0,0.051913]
[1735295641691,0.001,96428.0,96425.0,0.051913]
[1735295643307,0.051911,96429.0,96416.0,0.051917]
[1735295643508,0.15529114,96430.0,96410.0,0.014]
[1735295643798,0.15529114,96420.0,96410.0,0.014]
[1735295643999,0.0403,96429.0,96410.0,0.014]
[1735295644201,0.051913,96426.0,96410.0,0.16929114]
[1735295644399,0.0411,96436.0,96410.0,0.014]
[1735295644706,0.0411,96436.0,96414.0,0.051918]
[1735295644707,0.051913,96425.0,96414.0,0.051918]
[1735295645295,0.051913,96425.0,96415.0,0.051918]
[1735295645801,0.12278202,96422.0,96415.0,0.051918]
[1735295646204,0.12278202,96422.0,96417.0,0.051917]
[1735295646503,0.12278202,96422.0,96419.0,0.051916]
[1735295646699,0.051913,96425.0,96419.0,0.051916]
[1735295647202,0.001,96422.0,96419.0,0.051916]
[1735295647404,0.051918,96416.0,96411.0,0.05192]
[1735295647600,0.05192,96412.0,96410.0,0.014]
[1735295647802,0.0424,96411.0,96410.0,0.014]
[1735295648005,0.0424,96411.0,96392.0,0.2480842]
[1735295648199,0.051928,96398.0,96392.0,0.2480842]
[1735295648396,0.05193,96394.0,96392.0,0.2480842]
[1735295649292,0.15529114,96402.0,96372.0,0.00155627]
[1735295649293,0.12278202,96399.0,96372.0,0.00155627]
[1735295649495,0.051938,96379.0,96372.0,0.00155627]
[1735295650406,0.051933,96387.0,96380.0,0.051937]
[1735295651018,0.051935,96385.0,96372.0,0.05349727]
[1735295651208,0.001,96379.0,96373.0,0.051941]
[1735295651509,0.001,96379.0,96372.0,0.00155627]
[1735295651700,0.002,96379.0,96372.0,0.00155627]
[1735295651908,0.05194,96376.0,96372.0,0.00155627]
[1735295652296,0.002,96379.0,96360.0,0.051948]
[1735295652620,0.051945,96366.0,96356.0,0.05195]
[1735295653413,0.051946,96363.0,96356.0,0.05195]
[1735295653904,0.051946,96363.0,96343.0,0.04995874]
[1735295654212,0.051946,96363.0,96357.0,0.051949]
[1735295654913,0.052946,96363.0,96357.0,0.051949]
[1735295656103,0.053946,96363.0,96357.0,0.051949]
[1735295657110,0.052946,96363.0,96357.0,0.051949]
[1735295658712,0.051955,96348.0,96343.0,0.0407]
[1735295658905,0.051956,96346.0,96340.0,0.051958]
[1735295659107,0.15529114,96353.0,96336.0,0.36130229]
[1735295659328,0.051958,96342.0,96336.0,0.01250229]
[1735295660012,0.051958,96342.0,96337.0,0.05196]
[1735295660215,0.15529114,96370.0,96336.0,0.00155684]
[1735295660406,0.001,96353.0,96344.0,0.051956]
[1735295660611,0.051952,96352.0,96344.0,0.051956]
[1735295661010,0.051954,96350.0,96344.0,0.051956]
[1735295662102,0.15529114,96360.0,96336.0,0.00155684]
[1735295662103,0.051955,96348.0,96336.0,0.00155684]
[1735295662309,0.051955,96347.0,96338.0,0.05196]
[1735295662610,0.051955,96347.0,96336.0,0.00155684]
[1735295662812,0.051955,96347.0,96343.0,0.051957]
[1735295663517,0.051957,96344.0,96336.0,0.00155684]
[1735295663715,0.051957,96344.0,96340.0,0.051959]
[1735295664315,0.051957,96344.0,96336.0,0.00155684]
[1735295664524,0.051957,96344.0,96341.0,0.051958]
[1735295665019,0.001,96347.0,96336.0,0.00155684]
[1735295665221,0.12278202,96383.0,96359.0,0.051948]
[1735295665222,0.051945,96366.0,96359.0,0.051948]
[1735295665409,0.051942,96372.0,96356.0,0.05195]
[1735295665610,0.15529114,96370.0,96356.0,0.05195]
[1735295666412,0.004,96366.0,96337.0,0.05196]
[1735295666619,0.004,96366.0,96336.0,0.00155684]
[1735295666818,0.051953,96351.0,96341.0,0.051958]
[1735295667118,0.051954,96349.0,96341.0,0.051958]
[1735295667825,0.051957,96344.0,96341.0,0.051958]
[1735295669221,0.051958,96343.0,96341.0,0.051958]
[1735295669525,0.051958,96341.0,96336.0,0.00155684]
[1735295669726,0.051958,96341.0,96337.0,0.05196]
[1735295670219,0.15529114,96351.0,96336.0,0.00155684]
[1735295670422,0.05196,96338.0,96336.0,0.00155684]
[1735295670628,0.05196,96338.0,96317.0,0.051971]
[1735295670814,0.15529114,96330.0,96317.0,0.051971]
[1735295671014,0.15529114,96330.0,96305.0,0.082]
[1735295671215,0.051971,96318.0,96311.0,0.051974]
[1735295671411,0.15529114,96320.0,96305.0,0.0403]
[1735295671616,0.15529114,96320.0,96306.0,0.051977]
[1735295671826,0.051975,96311.0,96306.0,0.051977]
[1735295672022,0.051977,96306.0,96301.0,0.2480842]
[1735295672325,0.15529114,96320.0,96301.0,0.2480842]
[1735295672326,0.051979,96303.0,96301.0,0.2480842]
[1735295672515,0.05198,96301.0,96297.0,0.00155748]
[1735295673617,0.0414,96319.0,96297.0,0.00155748]
[1735295673821,0.093371,96319.0,96310.0,0.051975]
[1735295674021,0.0414,96319.0,96310.0,0.051975]
[1735295674219,0.051972,96316.0,96310.0,0.051975]
[1735295674417,0.0414,96319.0,96300.0,0.25529114]
[1735295674618,0.00942879,96323.0,96321.0,0.051969]
[1735295674812,0.17474602,96330.0,96301.0,0.0875]
[1735295675023,0.20725514,96330.0,96321.0,0.051969]
[1735295675223,0.20725514,96330.0,96323.0,0.051968]
[1735295675423,0.15529114,96330.0,96323.0,0.051968]
[1735295676827,0.15529114,96330.0,96301.0,0.0875]
[1735295677020,0.051968,96324.0,96319.0,0.05197]
[1735295678014,0.15629114,96330.0,96311.0,0.051974]
[1735295678219,0.15629114,96330.0,96301.0,0.0444]
[1735295678416,0.15529114,96321.0,96300.0,0.1]
[1735295678725,0.051973,96314.0,96305.0,0.051977]
[1735295679026,0.051973,96314.0,96307.0,0.051976]
[1735295679328,0.051968,96323.0,96300.0,0.1]
[1735295679826,0.0407,96329.0,96300.0,0.1]
[1735295680018,0.15529114,96320.0,96300.0,0.1]
[1735295680628,0.051971,96317.0,96310.0,0.051974]
[1735295681434,0.15529114,96320.0,96300.0,0.1]
[1735295681727,0.04980661,96329.0,96302.0,0.051979]
[1735295681728,0.15529114,96310.0,96302.0,0.051979]
[1735295681925,0.051974,96312.0,96300.0,0.1]
[1735295681926,0.051974,96312.0,96305.0,0.051977]
[1735295682227,0.051974,96312.0,96300.0,0.1]
[1735295682421,0.092972,96316.0,96310.0,0.051974]
[1735295682730,0.051974,96312.0,96303.0,0.051979]
[1735295683117,0.051974,96312.0,96300.0,0.1]
[1735295683320,0.05297,96320.0,96313.0,0.051973]
[1735295683718,0.001,96320.0,96313.0,0.051973]
[1735295683921,0.051971,96318.0,96313.0,0.051973]
[1735295684126,0.051974,96313.0,96305.0,0.051977]
[1735295684521,0.15629114,96320.0,96300.0,0.1]
[1735295684522,0.051972,96316.0,96302.0,0.051979]
[1735295684720,0.15629114,96320.0,96300.0,0.1]
[1735295684922,0.051972,96315.0,96307.0,0.051976]
[1735295685125,0.051974,96313.0,96307.0,0.051976]
[1735295685325,0.001,96312.0,96307.0,0.051976]
[1735295685529,0.001,96312.0,96308.0,0.051976]
[1735295686033,0.052974,96313.0,96308.0,0.051976]
[1735295686426,0.001,96313.0,96308.0,0.051976]
[1735295686626,0.001,96312.0,96300.0,0.1]
[1735295686826,0.051975,96310.0,96301.0,0.05198]
[1735295687226,0.051975,96310.0,96302.0,0.051979]
[1735295687421,0.001,96312.0,96302.0,0.051979]
[1735295687838,0.001,96312.0,96309.0,0.051975]
[1735295688229,0.001,96313.0,96300.0,0.1]
[1735295688544,0.001,96313.0,96311.0,0.051974]
[1735295688736,0.12278202,96320.0,96312.0,0.0438]
[1735295688926,0.12278202,96320.0,96318.0,0.05197]
[1735295689836,0.051969,96322.0,96312.0,0.0438]
[1735295690032,0.051969,96322.0,96320.0,0.051969]
[1735295690339,0.051971,96318.0,96313.0,0.051973]
[1735295691336,0.051971,96318.0,96300.0,0.1]
[1735295691639,0.051972,96316.0,96308.0,0.051976]
[1735295692037,0.051972,96316.0,96309.0,0.051975]
[1735295692438,0.051973,96315.0,96309.0,0.051975]
[1735295692841,0.051973,96315.0,96313.0,0.051973]
[1735295693041,0.001,96316.0,96315.0,0.051972]
[1735295694440,0.001,96316.0,96300.0,0.26764293]
[1735295694744,0.001,96316.0,96312.0,0.051974]
[1735295695340,0.051971,96318.0,96312.0,0.051974]
[1735295695733,0.051971,96318.0,96300.0,0.26764293]
[1735295695943,0.051971,96318.0,96313.0,0.051973]
[1735295696429,0.051971,96317.0,96313.0,0.051973]
[1735295696737,0.051971,96317.0,96303.0,0.18567093]
[1735295696937,0.001,96318.0,96307.0,0.18567093]
[1735295697738,0.001,96318.0,96317.0,0.051971]
[1735295698541,0.05197,96320.0,96317.0,0.051971]
[1735295698933,0.33107452,96330.0,96310.0,0.18567093]
[1735295699133,0.05197,96319.0,96317.0,0.003]
[1735295699539,0.05197,96319.0,96317.0,0.001]
[1735295699841,0.12278202,96329.0,96317.0,0.002]
[1735295700048,0.17474702,96329.0,96324.0,0.051967]
[1735295700944,0.12278202,96329.0,96317.0,0.053971]
[1735295701143,0.051967,96326.0,96321.0,0.18567093]
[1735295701847,0.051967,96326.0,96321.0,0.23763993]
[1735295702240,0.12278202,96328.0,96321.0,0.18567093]
[1735295702442,0.051968,96322.0,96321.0,0.18767093]
[1735295702740,0.051968,96322.0,96321.0,0.002]
[1735295702949,0.05197,96319.0,96318.0,0.18567093]
[1735295704140,0.051972,96315.0,96313.0,0.18567093]
[1735295705043,0.15343187,96325.0,96313.0,0.18567093]
[1735295705241,0.15343187,96325.0,96313.0,0.48567093]
[1735295705541,0.051951,96355.0,96350.0,0.051953]
[1735295705746,0.0432,96359.0,96340.0,0.10364625]
[1735295705942,0.21588463,96361.0,96341.0,0.042]
[1735295706241,0.21480462,96361.0,96359.0,0.051948]
[1735295707045,0.21480462,96361.0,96341.0,0.1278]
[1735295707245,0.051952,96352.0,96351.0,0.3721263]
[1735295707954,0.055948,96361.0,96352.0,0.051952]
[1735295708144,0.061948,96361.0,96359.0,0.001]
[1735295708548,0.057948,96361.0,96359.0,0.001]
[1735295708940,0.051953,96350.0,96349.0,0.24850842]
[1735295709241,0.051953,96350.0,96349.0,0.10970842]
[1735295709446,0.051957,96343.0,96342.0,0.31063553]
[1735295709754,0.051954,96349.0,96341.0,0.18630965]
[1735295709950,0.35303301,96350.0,96341.0,0.18630965]
[1735295709951,0.051958,96342.0,96341.0,0.18630965]
[1735295711146,0.051962,96334.0,96333.0,0.18630965]
[1735295711956,0.051962,96334.0,96333.0,0.11770965]
[1735295712453,0.052962,96334.0,96333.0,0.006]
[1735295713157,0.0622524,96334.0,96333.0,0.006]
[1735295713849,0.0672524,96334.0,96333.0,0.001]
[1735295714049,0.051973,96314.0,96311.0,0.0444]
[1735295714245,0.15531036,96321.0,96311.0,0.0444]
[1735295714447,0.051974,96312.0,96311.0,0.0444]
[1735295715055,0.15531036,96330.0,96311.0,0.0444]
[1735295715251,0.15531036,96330.0,96311.0,0.096374]
[1735295715559,0.05197,96319.0,96311.0,0.096374]
[1735295715746,0.051974,96313.0,96311.0,0.0444]
[1735295715946,0.051979,96303.0,96298.0,0.0421]
[1735295716145,0.051979,96303.0,96301.0,0.31063553]
[1735295717450,0.052979,96303.0,96302.0,0.005]
[1735295717649,0.05289828,96303.0,96302.0,0.005]
[1735295717849,0.05198,96302.0,96298.0,0.0446]
[1735295718561,0.05198,96302.0,96301.0,0.004]
[1735295720561,0.05298,96302.0,96300.0,0.086972]
[1735295721263,0.05298,96302.0,96301.0,0.005]
[1735295721763,0.05298,96302.0,96300.0,0.086972]
[1735295722653,0.051988,96286.0,96285.0,0.0876]
[1735295723652,0.15531036,96295.0,96275.0,0.051994]
[1735295723863,0.051991,96281.0,96275.0,0.051994]
[1735295725269,0.001,96286.0,96283.0,0.051989]
[1735295725571,0.051987,96288.0,96283.0,0.051989]
[1735295725765,0.00965221,96298.0,96283.0,0.051989]
[1735295726078,0.051988,96286.0,96278.0,0.051992]
[1735295726269,0.15531036,96300.0,96278.0,0.051992]
[1735295726270,0.10373114,96293.0,96278.0,0.051992]
[1735295726464,0.10373114,96293.0,96275.0,0.001]
[1735295726672,0.10373114,96285.0,96275.0,0.001]
[1735295727172,0.051989,96284.0,96283.0,0.001]
[1735295727666,0.10373114,96293.0,96274.0,0.094594]
[1735295727869,0.001,96286.0,96278.0,0.001]
[1735295728171,0.051983,96296.0,96279.0,0.051991]
[1735295728361,0.15553835,96300.0,96285.0,0.051988]
[1735295728565,0.15553835,96300.0,96278.0,0.051992]
[1735295728766,0.051989,96285.0,96278.0,0.051992]
[1735295728964,0.051989,96285.0,96275.0,0.001]
[1735295729164,0.15553835,96290.0,96279.0,0.051991]
[1735295729359,0.051991,96281.0,96279.0,0.051991]
[1735295729563,0.15553835,96290.0,96275.0,0.001]
[1735295729564,0.05199,96282.0,96275.0,0.001]
[1735295729768,0.15553835,96290.0,96275.0,0.001]
[1735295729965,0.051992,96278.0,96274.0,0.096594]
[1735295730369,0.051993,96276.0,96274.0,0.0446]
[1735295730570,0.051993,96276.0,96274.0,0.0426]
[1735295731173,0.052001,96261.0,96260.0,0.00335294]
[1735295731771,0.051998,96267.0,96260.0,0.00335294]
[1735295732159,0.15553835,96270.0,96266.0,0.051998]
[1735295732362,0.15553835,96270.0,96265.0,0.051999]
[1735295732764,0.051995,96273.0,96265.0,0.051999]
[1735295733175,0.051996,96271.0,96265.0,0.051999]
[1735295733980,0.051997,96269.0,96265.0,0.051999]
[1735295734776,0.051997,96269.0,96265.0,0.053999]
[1735295735271,0.051997,96269.0,96266.0,0.0452]
[1735295735975,0.00978731,96280.0,96266.0,0.0452]
[1735295736174,0.051993,96277.0,96270.0,0.051996]
[1735295737074,0.051994,96276.0,96270.0,0.051996]
[1735295738069,0.16540711,96290.0,96266.0,0.0452]
[1735295738266,0.16540711,96290.0,96277.0,0.051993]
[1735295738267,0.15553835,96290.0,96277.0,0.051993]
[1735295738473,0.051991,96281.0,96278.0,0.0434]
[1735295738872,0.051987,96288.0,96283.0,0.051989]
[1735295739180,0.09209267,96310.0,96297.0,0.051982]
[1735295739181,0.051977,96307.0,96297.0,0.051982]
[1735295739475,0.051978,96304.0,96298.0,0.095181]
[1735295739661,0.30060602,96310.0,96298.0,0.0432]
[1735295739868,0.12303094,96314.0,96309.0,0.051975]
[1735295740178,0.12303094,96314.0,96298.0,0.0432]
[1735295740179,0.05293094,96314.0,96312.0,0.051974]
[1735295740875,0.16517828,96322.0,96298.0,0.0432]
[1735295741086,0.16517828,96322.0,96309.0,0.051975]
[1735295741087,0.009,96314.0,96309.0,0.051975]
[1735295741279,0.009,96314.0,96311.0,0.051974]
[1735295741479,0.003,96314.0,96311.0,0.051974]
[1735295741672,0.01,96314.0,96311.0,0.051974]
[1735295743273,0.007,96314.0,96311.0,0.051974]
[1735295743474,0.01,96314.0,96312.0,0.0436]
[1735295743673,0.003,96314.0,96312.0,0.0436]
[1735295743873,0.009,96314.0,96312.0,0.0436]
[1735295744077,0.009,96314.0,96312.0,0.095573]
[1735295744275,0.01,96314.0,96312.0,0.095573]
[1735295744475,0.007,96314.0,96312.0,0.095573]
[1735295744675,0.01,96314.0,96312.0,0.095573]
[1735295745977,0.097855,96348.0,96337.0,0.05196]
[1735295746173,0.051949,96359.0,96321.0,0.051969]
[1735295746380,0.05195,96356.0,96344.0,0.051956]
[1735295746674,0.05195,96356.0,96321.0,0.051969]
[1735295746675,0.05195,96356.0,96345.0,0.0918]
[1735295746879,0.00952849,96362.0,96345.0,0.0918]
[1735295747085,0.051943,96370.0,96354.0,0.051951]
[1735295747583,0.051943,96370.0,96357.0,0.051949]
[1735295747786,0.15553835,96370.0,96357.0,0.051949]
[1735295747994,0.051951,96354.0,96345.0,0.0918]
[1735295749990,0.05195,96357.0,96332.0,0.051963]
[1735295750289,0.15553835,96360.0,96327.0,0.0427]
[1735295750290,0.004,96355.0,96327.0,0.0427]
[1735295750494,0.004,96355.0,96330.0,0.15553835]
[1735295750688,0.004,96355.0,96351.0,0.051952]
[1735295750886,0.15553835,96380.0,96352.0,0.0879]
[1735295751195,0.051945,96367.0,96352.0,0.0879]
[1735295751591,0.001,96355.0,96352.0,0.0879]
[1735295753088,0.001,96357.0,96352.0,0.0959]
[1735295753385,0.051947,96362.0,96352.0,0.0979]
[1735295753587,0.051947,96362.0,96352.0,0.148852]
[1735295753588,0.001,96355.0,96352.0,0.148852]
[1735295753994,0.001,96355.0,96354.0,0.051951]
[1735295754192,0.051937,96381.0,96368.0,0.051943]
[1735295754597,0.051937,96381.0,96370.0,0.051942]
[1735295754887,0.051937,96381.0,96374.0,0.05194]
[1735295755100,0.0438,96389.0,96376.0,0.051939]
[1735295755391,0.06181153,96390.0,96360.0,0.10357649]
[1735295755392,0.00987953,96390.0,96370.0,0.10357649]
[1735295755592,0.25550349,96400.0,96383.0,0.051935]
[1735295755793,0.25550349,96400.0,96384.0,0.051935]
[1735295755993,0.151927,96400.0,96387.0,0.051933]
[1735295756587,0.25523294,96400.0,96387.0,0.051933]
[1735295756790,0.051927,96398.0,96387.0,0.051933]
[1735295757591,0.051927,96398.0,96387.0,0.052933]
[1735295757994,0.051927,96398.0,96387.0,0.051933]
[1735295758193,0.051927,96398.0,96387.0,0.055933]
[1735295758698,0.051927,96398.0,96387.0,0.056933]
[1735295759496,0.1,96400.0,96387.0,0.056933]
[1735295759693,0.051929,96397.0,96387.0,0.056933]
[1735295759889,0.1,96400.0,96387.0,0.004]
[1735295759890,0.25523294,96400.0,96387.0,0.004]
[1735295760092,0.051933,96388.0,96387.0,0.001]
[1735295760393,0.051933,96388.0,96387.0,0.007]
[1735295761499,0.051949,96358.0,96348.0,0.05351072]
[1735295761693,0.051949,96358.0,96348.0,0.00155672]
[1735295761893,0.051949,96358.0,96350.0,0.051953]
[1735295762303,0.051953,96351.0,96348.0,0.00155672]
[1735295763203,0.15523294,96360.0,96348.0,0.00155672]
[1735295763500,0.051954,96350.0,96348.0,0.00155672]
[1735295763693,0.15523294,96360.0,96333.0,0.051962]
[1735295763890,0.001,96351.0,96348.0,0.005]
[1735295764090,0.051954,96349.0,96348.0,0.005]
[1735295764298,0.051954,96349.0,96318.0,0.00155729]
[1735295764496,0.046,96359.0,96318.0,0.00155729]
[1735295764699,0.051966,96328.0,96319.0,0.05197]
[1735295765396,0.15523294,96340.0,96318.0,0.00155729]
[1735295765696,0.051969,96322.0,96318.0,0.00155729]
[1735295766090,0.051969,96322.0,96319.0,0.001]
[1735295766497,0.05197,96320.0,96319.0,0.001]
[1735295767001,0.05197,96320.0,96318.0,0.00255729]
[1735295767607,0.001,96322.0,96318.0,0.00255729]
[1735295768402,0.001,96322.0,96318.0,0.00155729]
[1735295768599,0.051969,96321.0,96319.0,0.002]
[1735295769201,0.051969,96321.0,96319.0,0.004]
[1735295769809,0.05197,96319.0,96318.0,0.00355729]
[1735295770112,0.05197,96319.0,96318.0,0.00155729]
[1735295770809,0.05697,96319.0,96318.0,0.00155729]
[1735295772304,0.05197,96319.0,96318.0,0.00155729]
[1735295773005,0.05597,96319.0,96318.0,0.00155729]
[1735295773204,0.05597,96319.0,96318.0,0.00255729]
[1735295773605,0.05197,96319.0,96318.0,0.00255729]
[1735295773908,0.05197,96319.0,96318.0,0.00155729]
[1735295774098,0.05197,96319.0,96318.0,0.00255729]
[1735295774702,0.05197,96319.0,96318.0,0.00155729]
[1735295774999,0.05197,96319.0,96318.0,0.00255729]
[1735295775396,0.05597,96319.0,96318.0,0.00255729]
[1735295775597,0.05597,96319.0,96318.0,0.001]
[1735295775908,0.05597,96319.0,96291.0,0.24740901]
[1735295775909,0.051983,96295.0,96291.0,0.24740901]
[1735295776408,0.051985,96292.0,96291.0,0.24740901]
[1735295777407,0.051985,96292.0,96291.0,0.004]
[1735295778614,0.051985,96292.0,96291.0,0.006]
[1735295779915,0.001,96292.0,96291.0,0.006]
[1735295780104,0.001,96292.0,96291.0,0.057985]
[1735295782315,0.052985,96292.0,96291.0,0.006]
[1735295784310,0.001,96292.0,96291.0,0.006]
[1735295784506,0.001,96292.0,96291.0,0.0497]
[1735295786319,0.051977,96307.0,96292.0,0.051984]
[1735295786622,0.051977,96307.0,96300.0,0.05198]
[1735295786822,0.051977,96307.0,96301.0,0.0441]
[1735295787030,0.051977,96307.0,96302.0,0.051979]
[1735295787722,0.052977,96307.0,96302.0,0.051979]
[1735295788316,0.001,96307.0,96302.0,0.051979]
[1735295788522,0.051979,96303.0,96302.0,0.051979]
[1735295789526,0.051975,96310.0,96301.0,0.0441]
[1735295789725,0.051975,96310.0,96308.0,0.051976]
[1735295790318,0.103707,96320.0,96284.0,0.01016943]
[1735295790524,0.051977,96306.0,96302.0,0.051979]